[Event "*** SCC Grand Prix: Titled Tuesday Blitz"]
[Site "Chess.com"]
[Date "2020.08.25"]
[Round "9"]
[White "seorobert1971"]
[Black "VMikhalevski"]
[Result "0-1"]
[WhiteElo "2649"]
[BlackElo "2736"]
[TimeControl "180+1"]
[EndTime "11:49:17 PDT"]
[Termination "VMikhalevski won by resignation"]

1. c4 {[%clk 0:03:00.9]} 1... Nf6 {[%clk 0:02:58.1]} 2. Nc3 {[%clk 0:03:00.9]}
2... d5 {[%clk 0:02:58.4]} 3. cxd5 {[%clk 0:03:00.4]} 3... Nxd5 {[%clk
0:02:58.5]} 4. Qb3 {[%clk 0:03:00.3]} 4... Nb6 {[%clk 0:02:52.4]} 5. Nf3 {[%clk
0:02:56.9]} 5... Nc6 {[%clk 0:02:52.2]} 6. g3 {[%clk 0:02:53.1]} 6... e5 {[%clk
0:02:49.4]} 7. Bg2 {[%clk 0:02:50.9]} 7... Be6 {[%clk 0:02:49.5]} 8. Qd1 {[%clk
0:02:50.1]} 8... Be7 {[%clk 0:02:45.9]} 9. O-O {[%clk 0:02:49.6]} 9... O-O
{[%clk 0:02:45.9]} 10. d3 {[%clk 0:02:49.4]} 10... Qd7 {[%clk 0:02:45.4]} 11.
Be3 {[%clk 0:02:48.1]} 11... Bh3 {[%clk 0:02:43.6]} 12. Rc1 {[%clk 0:02:43.8]}
12... Bxg2 {[%clk 0:02:36.9]} 13. Kxg2 {[%clk 0:02:43.6]} 13... Kh8 {[%clk
0:02:28.4]} 14. a3 {[%clk 0:02:41]} 14... f5 {[%clk 0:02:25.9]} 15. Qb3 {[%clk
0:02:35.6]} 15... Rae8 {[%clk 0:02:08.7]} 16. Bxb6 {[%clk 0:02:20.9]} 16... axb6
{[%clk 0:02:02.8]} 17. Qd5 {[%clk 0:02:20.3]} 17... Bd6 {[%clk 0:01:54.3]} 18.
Rfd1 {[%clk 0:02:14.4]} 18... Ne7 {[%clk 0:01:22]} 19. Qxb7 {[%clk 0:02:08.6]}
19... Ra8 {[%clk 0:01:19.8]} 20. Nd5 {[%clk 0:02:01.5]} 20... Rab8 {[%clk
0:01:03]} 21. Nxb6 {[%clk 0:01:30]} 21... Qb5 {[%clk 0:01:00]} 22. Qa7 {[%clk
0:01:13.8]} 22... Qxb6 {[%clk 0:00:54.7]} 23. Qxb6 {[%clk 0:01:12.7]} 23... Rxb6
{[%clk 0:00:54.5]} 24. b4 {[%clk 0:01:11.7]} 24... Ra8 {[%clk 0:00:54.1]} 25.
Rc3 {[%clk 0:01:11.6]} 25... Nd5 {[%clk 0:00:52.3]} 26. Rb3 {[%clk 0:01:10.6]}
26... Rba6 {[%clk 0:00:52.1]} 27. e4 {[%clk 0:01:09.6]} 27... fxe4 {[%clk
0:00:49.6]} 28. dxe4 {[%clk 0:01:09.5]} 28... Nf6 {[%clk 0:00:49.5]} 29. b5
{[%clk 0:01:08.6]} 29... Rb6 {[%clk 0:00:48.1]} 30. Rdd3 {[%clk 0:01:04.8]}
30... Nxe4 {[%clk 0:00:46.8]} 31. Re3 {[%clk 0:01:00.1]} 31... Ra4 {[%clk
0:00:38.1]} 32. h4 {[%clk 0:00:52.3]} 32... h6 {[%clk 0:00:37.1]} 33. Kf1 {[%clk
0:00:51.4]} 33... Kh7 {[%clk 0:00:35.6]} 34. Kg2 {[%clk 0:00:51.3]} 34... Kg6
{[%clk 0:00:34.1]} 35. Kh3 {[%clk 0:00:42.8]} 35... Kf5 {[%clk 0:00:32.3]} 36.
Kg2 {[%clk 0:00:42.5]} 36... Ke6 {[%clk 0:00:29.4]} 37. Kf1 {[%clk 0:00:38.2]}
37... Nc5 {[%clk 0:00:25.3]} 38. Rb1 {[%clk 0:00:36.4]} 38... Nd7 {[%clk
0:00:21.4]} 39. Rbb3 {[%clk 0:00:33.5]} 39... Nf6 {[%clk 0:00:21]} 40. Kg2
{[%clk 0:00:18.8]} 40... Nd5 {[%clk 0:00:20.4]} 41. Re1 {[%clk 0:00:18.4]} 41...
Rxa3 {[%clk 0:00:18.4]} 42. Rb2 {[%clk 0:00:14.7]} 42... Nf6 {[%clk 0:00:14.1]}
43. Rbe2 {[%clk 0:00:12.6]} 43... e4 {[%clk 0:00:10.9]} 44. Nd2 {[%clk
0:00:11.7]} 44... Rxb5 {[%clk 0:00:10.3]} 45. Nc4 {[%clk 0:00:09.7]} 45... Rc3
{[%clk 0:00:09.2]} 46. Ne3 {[%clk 0:00:09.7]} 46... h5 {[%clk 0:00:08.7]} 47.
Nd1 {[%clk 0:00:09.2]} 47... Rcb3 {[%clk 0:00:07.5]} 48. Ne3 {[%clk 0:00:09]}
48... Rb2 {[%clk 0:00:07.8]} 49. Nc2 {[%clk 0:00:07.1]} 49... Kf7 {[%clk
0:00:07.4]} 50. Nd4 {[%clk 0:00:04.2]} 50... Rxe2 {[%clk 0:00:06.8]} 51. Rxe2
{[%clk 0:00:05.1]} 51... Rd5 {[%clk 0:00:07.1]} 52. Nc6 {[%clk 0:00:05.3]} 52...
Rc5 {[%clk 0:00:05.8]} 53. Nd4 {[%clk 0:00:05.3]} 53... Rc4 {[%clk 0:00:05.7]}
54. Nf5 {[%clk 0:00:05.2]} 54... Be5 {[%clk 0:00:05.3]} 55. Ne3 {[%clk
0:00:04.8]} 55... Rd4 {[%clk 0:00:05.3]} 56. Rc2 {[%clk 0:00:04.5]} 56... Rd3
{[%clk 0:00:05.5]} 57. Nf5 {[%clk 0:00:04]} 57... Ke6 {[%clk 0:00:05.3]} 58.
Nxg7+ {[%clk 0:00:03.4]} 58... Kd5 {[%clk 0:00:05.9]} 59. Nf5 {[%clk 0:00:02.9]}
59... c5 {[%clk 0:00:06]} 60. Ne3+ {[%clk 0:00:02.3]} 60... Kc6 {[%clk 0:00:06]}
61. Nf5 {[%clk 0:00:01.8]} 61... Bd4 {[%clk 0:00:05.7]} 62. Ne7+ {[%clk
0:00:01.3]} 62... Kd6 {[%clk 0:00:05.6]} 63. Nf5+ {[%clk 0:00:02.2]} 63... Ke5
{[%clk 0:00:05.3]} 64. Nh6 {[%clk 0:00:02.2]} 64... Kd5 {[%clk 0:00:04.6]} 65.
Nf7 {[%clk 0:00:02.2]} 65... c4 {[%clk 0:00:04.4]} 66. Ng5 {[%clk 0:00:02.4]}
66... c3 {[%clk 0:00:04]} 67. Kf1 {[%clk 0:00:02.5]} 67... Rd2 {[%clk
0:00:03.7]} 68. Rxd2 {[%clk 0:00:02.4]} 68... cxd2 {[%clk 0:00:04]} 69. Ke2
{[%clk 0:00:02.6]} 69... Bxf2 {[%clk 0:00:04.6]} 70. Kxd2 {[%clk 0:00:02.7]}
70... Bxg3 {[%clk 0:00:04.6]} 71. Ke2 {[%clk 0:00:02.3]} 71... Bxh4 {[%clk
0:00:05.1]} 72. Nh3 {[%clk 0:00:02.4]} 72... Bg3 {[%clk 0:00:05.1]} 73. Ng5
{[%clk 0:00:02.2]} 73... h4 {[%clk 0:00:05.8]} 74. Ke3 {[%clk 0:00:02.5]} 74...
Ke5 {[%clk 0:00:06.3]} 75. Nf7+ {[%clk 0:00:02.1]} 75... Kf5 {[%clk 0:00:06.7]}
76. Nh6+ {[%clk 0:00:02.2]} 76... Kg5 {[%clk 0:00:06.8]} 77. Nf7+ {[%clk
0:00:03.1]} 77... Kg6 {[%clk 0:00:07.1]} 78. Nh8+ {[%clk 0:00:02.7]} 78... Kg7
{[%clk 0:00:05.7]} 0-1

[Event "*** SCC Grand Prix: Titled Tuesday Blitz"]
[Site "Chess.com"]
[Date "2020.08.25"]
[Round "9"]
[White "ditkin25"]
[Black "Shushik"]
[Result "1-0"]
[WhiteElo "2415"]
[BlackElo "2250"]
[TimeControl "180+1"]
[EndTime "11:49:17 PDT"]
[Termination "ditkin25 won by checkmate"]

1. e4 {[%clk 0:02:59.5]} 1... e5 {[%clk 0:03:00.1]} 2. Nf3 {[%clk 0:02:59.1]}
2... Nc6 {[%clk 0:03:00.4]} 3. Nc3 {[%clk 0:02:57.9]} 3... g6 {[%clk 0:03:00.3]}
4. d4 {[%clk 0:02:57.1]} 4... exd4 {[%clk 0:03:00.4]} 5. Nxd4 {[%clk 0:02:58]}
5... Bg7 {[%clk 0:03:00.5]} 6. Be3 {[%clk 0:02:58.3]} 6... Nf6 {[%clk
0:02:58.2]} 7. Bc4 {[%clk 0:02:58.1]} 7... O-O {[%clk 0:02:55]} 8. O-O {[%clk
0:02:58.1]} 8... Re8 {[%clk 0:02:39.4]} 9. f3 {[%clk 0:02:58]} 9... a6 {[%clk
0:02:29.8]} 10. a4 {[%clk 0:02:49.8]} 10... d6 {[%clk 0:02:15.5]} 11. Qd2 {[%clk
0:02:39.2]} 11... Nd7 {[%clk 0:02:11.3]} 12. Rad1 {[%clk 0:02:14.3]} 12... Nb6
{[%clk 0:02:03.3]} 13. Ba2 {[%clk 0:01:56.8]} 13... Nxd4 {[%clk 0:01:49.6]} 14.
Bxd4 {[%clk 0:01:57.7]} 14... Be6 {[%clk 0:01:44.4]} 15. Bxe6 {[%clk 0:01:49.1]}
15... Rxe6 {[%clk 0:01:40]} 16. Bxg7 {[%clk 0:01:40.7]} 16... Kxg7 {[%clk
0:01:39.5]} 17. a5 {[%clk 0:01:41.1]} 17... Nd7 {[%clk 0:01:36.6]} 18. Nd5
{[%clk 0:01:31.8]} 18... Nf6 {[%clk 0:01:26.7]} 19. Qc3 {[%clk 0:01:27.8]} 19...
c6 {[%clk 0:01:05.9]} 20. Nf4 {[%clk 0:01:17.2]} 20... Re8 {[%clk 0:01:00.5]}
21. Rfe1 {[%clk 0:01:17]} 21... Qc7 {[%clk 0:00:53.7]} 22. Nd5 {[%clk
0:01:10.7]} 22... Qd8 {[%clk 0:00:47.5]} 23. Nb6 {[%clk 0:01:10.8]} 23... Qe7
{[%clk 0:00:28.8]} 24. Nxa8 {[%clk 0:01:05.6]} 24... Rxa8 {[%clk 0:00:28.4]} 25.
e5 {[%clk 0:01:04.8]} 25... Nd5 {[%clk 0:00:28.1]} 26. Qd4 {[%clk 0:00:33.6]}
26... dxe5 {[%clk 0:00:24.8]} 27. Rxe5 {[%clk 0:00:34.5]} 27... Qf6 {[%clk
0:00:24.2]} 28. c4 {[%clk 0:00:31.6]} 28... Nf4 {[%clk 0:00:21.4]} 29. Re7
{[%clk 0:00:25.1]} 29... Qxd4+ {[%clk 0:00:18.9]} 30. Rxd4 {[%clk 0:00:26]}
30... Kf6 {[%clk 0:00:14.5]} 31. Rdd7 {[%clk 0:00:24.3]} 31... Ne6 {[%clk
0:00:13]} 32. Rxf7+ {[%clk 0:00:24.1]} 32... Ke5 {[%clk 0:00:13.2]} 33. Rxb7
{[%clk 0:00:23.9]} 33... Kd4 {[%clk 0:00:13.1]} 34. Rxh7 {[%clk 0:00:19.8]}
34... Kxc4 {[%clk 0:00:12.5]} 35. Rhe7 {[%clk 0:00:17.4]} 35... Nc5 {[%clk
0:00:12]} 36. Rbc7 {[%clk 0:00:17]} 36... Kb5 {[%clk 0:00:11.3]} 37. Re5 {[%clk
0:00:16.5]} 37... Rd8 {[%clk 0:00:08.8]} 38. Rb7+ {[%clk 0:00:15.5]} 38... Kc4
{[%clk 0:00:08.7]} 39. Rb6 {[%clk 0:00:13.6]} 39... Rd1+ {[%clk 0:00:06.6]} 40.
Kf2 {[%clk 0:00:14.1]} 40... Nd3+ {[%clk 0:00:06.8]} 41. Ke2 {[%clk 0:00:14.7]}
41... Re1+ {[%clk 0:00:07]} 42. Kd2 {[%clk 0:00:15.1]} 42... Rxe5 {[%clk
0:00:07.1]} 43. Rxc6+ {[%clk 0:00:15.6]} 43... Kb5 {[%clk 0:00:07.2]} 44. Rxg6
{[%clk 0:00:16.2]} 44... Nxb2 {[%clk 0:00:06.7]} 45. f4 {[%clk 0:00:15.2]} 45...
Nc4+ {[%clk 0:00:05.9]} 46. Kc3 {[%clk 0:00:15.2]} 46... Re3+ {[%clk 0:00:05.8]}
47. Kd4 {[%clk 0:00:15.7]} 47... Re2 {[%clk 0:00:04.5]} 48. Rg5+ {[%clk
0:00:15.6]} 48... Kb4 {[%clk 0:00:04.7]} 49. h4 {[%clk 0:00:15.9]} 49... Rd2+
{[%clk 0:00:04.4]} 50. Ke4 {[%clk 0:00:14.7]} 50... Re2+ {[%clk 0:00:04.3]} 51.
Kf3 {[%clk 0:00:14.8]} 51... Re3+ {[%clk 0:00:04.6]} 52. Kf2 {[%clk 0:00:15.3]}
52... Re4 {[%clk 0:00:04.3]} 53. g3 {[%clk 0:00:14.1]} 53... Rd4 {[%clk
0:00:03.7]} 54. Rg6 {[%clk 0:00:11.5]} 54... Rd7 {[%clk 0:00:03.5]} 55. Rxa6
{[%clk 0:00:11.4]} 55... Nxa5 {[%clk 0:00:03.7]} 56. Rb6+ {[%clk 0:00:11]} 56...
Kc5 {[%clk 0:00:03.2]} 57. Rg6 {[%clk 0:00:11.9]} 57... Nc4 {[%clk 0:00:03.4]}
58. h5 {[%clk 0:00:12.5]} 58... Kd5 {[%clk 0:00:03.1]} 59. h6 {[%clk 0:00:12.3]}
59... Rh7 {[%clk 0:00:03.2]} 60. g4 {[%clk 0:00:12.2]} 60... Nd6 {[%clk
0:00:03.1]} 61. g5 {[%clk 0:00:11.9]} 61... Nf7 {[%clk 0:00:02.4]} 62. Rg7
{[%clk 0:00:11.8]} 62... Rh8 {[%clk 0:00:02.2]} 63. Rxf7 {[%clk 0:00:11.4]}
63... Ke6 {[%clk 0:00:02.6]} 64. Rf6+ {[%clk 0:00:11.1]} 64... Ke7 {[%clk
0:00:02.7]} 65. Kg3 {[%clk 0:00:11.8]} 65... Rxh6 {[%clk 0:00:02.6]} 66. Rxh6
{[%clk 0:00:11.6]} 66... Kf7 {[%clk 0:00:02.8]} 67. f5 {[%clk 0:00:12.1]} 67...
Kg7 {[%clk 0:00:03]} 68. Kf4 {[%clk 0:00:12.7]} 68... Kf7 {[%clk 0:00:03.4]} 69.
Ke5 {[%clk 0:00:13.4]} 69... Kg7 {[%clk 0:00:03.8]} 70. Ra6 {[%clk 0:00:13.7]}
70... Kf7 {[%clk 0:00:04]} 71. Ra7+ {[%clk 0:00:14.2]} 71... Kg8 {[%clk
0:00:04]} 72. Kf6 {[%clk 0:00:14.5]} 72... Kh8 {[%clk 0:00:04.4]} 73. Kg6 {[%clk
0:00:14.8]} 73... Kg8 {[%clk 0:00:04.8]} 74. Ra8# {[%clk 0:00:15.7]} 1-0

[Event "*** SCC Grand Prix: Titled Tuesday Blitz"]
[Site "Chess.com"]
[Date "2020.08.25"]
[Round "9"]
[White "brute4ever"]
[Black "ftorodent"]
[Result "0-1"]
[WhiteElo "2501"]
[BlackElo "2677"]
[TimeControl "180+1"]
[EndTime "11:49:35 PDT"]
[Termination "ftorodent won by checkmate"]

1. e4 {[%clk 0:03:00]} 1... c5 {[%clk 0:02:59.2]} 2. Nf3 {[%clk 0:03:00]} 2...
e6 {[%clk 0:02:58.9]} 3. g3 {[%clk 0:02:59.7]} 3... b6 {[%clk 0:02:57.9]} 4. Bg2
{[%clk 0:02:59.9]} 4... Bb7 {[%clk 0:02:57.4]} 5. Qe2 {[%clk 0:02:59.4]} 5... d6
{[%clk 0:02:57]} 6. O-O {[%clk 0:02:59]} 6... Nf6 {[%clk 0:02:56.3]} 7. d3
{[%clk 0:02:56.1]} 7... Be7 {[%clk 0:02:55.5]} 8. Nbd2 {[%clk 0:02:56]} 8... O-O
{[%clk 0:02:54.8]} 9. Re1 {[%clk 0:02:53.9]} 9... Nc6 {[%clk 0:02:51.6]} 10. c3
{[%clk 0:02:53.9]} 10... e5 {[%clk 0:02:47.7]} 11. a3 {[%clk 0:02:48.1]} 11...
Re8 {[%clk 0:02:27.6]} 12. b4 {[%clk 0:02:47.4]} 12... a6 {[%clk 0:02:22.7]} 13.
h3 {[%clk 0:02:44.7]} 13... Bf8 {[%clk 0:02:21.9]} 14. Bb2 {[%clk 0:02:37.7]}
14... Qd7 {[%clk 0:02:10.3]} 15. Kh2 {[%clk 0:02:25.3]} 15... Rad8 {[%clk
0:02:09.7]} 16. Nc4 {[%clk 0:02:24.6]} 16... Qc7 {[%clk 0:02:06.9]} 17. Ne3
{[%clk 0:02:21.1]} 17... b5 {[%clk 0:01:41.1]} 18. Rac1 {[%clk 0:02:18.9]} 18...
Qb6 {[%clk 0:01:39.4]} 19. Nd2 {[%clk 0:01:35.2]} 19... a5 {[%clk 0:01:36.6]}
20. bxc5 {[%clk 0:01:27.4]} 20... dxc5 {[%clk 0:01:36.2]} 21. a4 {[%clk
0:01:23.8]} 21... b4 {[%clk 0:01:19.8]} 22. Nd5 {[%clk 0:01:23.7]} 22... Nxd5
{[%clk 0:01:17]} 23. exd5 {[%clk 0:01:24.6]} 23... Nb8 {[%clk 0:01:16.6]} 24. c4
{[%clk 0:01:24.5]} 24... Nd7 {[%clk 0:01:12.7]} 25. Nb3 {[%clk 0:01:19.2]} 25...
Bd6 {[%clk 0:01:08.3]} 26. Kh1 {[%clk 0:01:10.5]} 26... Qc7 {[%clk 0:01:00.8]}
27. Qf3 {[%clk 0:01:07.4]} 27... Bc8 {[%clk 0:00:59.5]} 28. Re2 {[%clk 0:01:07]}
28... Nf8 {[%clk 0:00:57.8]} 29. Qe3 {[%clk 0:00:59]} 29... Bd7 {[%clk
0:00:56.3]} 30. Ra1 {[%clk 0:00:58.7]} 30... f5 {[%clk 0:00:56.2]} 31. Qd2
{[%clk 0:00:59]} 31... Re7 {[%clk 0:00:53.6]} 32. Qc2 {[%clk 0:00:52.5]} 32...
Rde8 {[%clk 0:00:51.7]} 33. Nd2 {[%clk 0:00:52.5]} 33... Ng6 {[%clk 0:00:48.6]}
34. Rae1 {[%clk 0:00:52.2]} 34... Qd8 {[%clk 0:00:46.3]} 35. Nf3 {[%clk
0:00:46.1]} 35... h6 {[%clk 0:00:44.2]} 36. Ba1 {[%clk 0:00:41.7]} 36... Qc7
{[%clk 0:00:42.3]} 37. Nd2 {[%clk 0:00:37.2]} 37... Rf8 {[%clk 0:00:38.5]} 38.
Bf3 {[%clk 0:00:37.5]} 38... Qd8 {[%clk 0:00:31.7]} 39. Bg2 {[%clk 0:00:37.3]}
39... Qe8 {[%clk 0:00:31.2]} 40. Nb3 {[%clk 0:00:35.5]} 40... Bxa4 {[%clk
0:00:30.6]} 41. Qa2 {[%clk 0:00:36]} 41... Bxb3 {[%clk 0:00:27.1]} 42. Qxb3
{[%clk 0:00:36.9]} 42... a4 {[%clk 0:00:27.8]} 43. Qa2 {[%clk 0:00:37]} 43... f4
{[%clk 0:00:26.1]} 44. Be4 {[%clk 0:00:35.6]} 44... Nh8 {[%clk 0:00:24]} 45. Kg2
{[%clk 0:00:30.4]} 45... Nf7 {[%clk 0:00:22.5]} 46. Bg6 {[%clk 0:00:29.6]} 46...
f3+ {[%clk 0:00:22]} 47. Kh2 {[%clk 0:00:23.7]} 47... fxe2 {[%clk 0:00:21.1]}
48. Qxe2 {[%clk 0:00:24.6]} 48... Qd7 {[%clk 0:00:20.6]} 49. h4 {[%clk
0:00:24.5]} 49... Nh8 {[%clk 0:00:19.9]} 50. Be4 {[%clk 0:00:24.4]} 50... Ref7
{[%clk 0:00:20.1]} 51. Rf1 {[%clk 0:00:22.8]} 51... a3 {[%clk 0:00:18.3]} 52.
Qc2 {[%clk 0:00:21.7]} 52... Rf6 {[%clk 0:00:15.9]} 53. Kg2 {[%clk 0:00:21.7]}
53... Qf7 {[%clk 0:00:15.9]} 54. f3 {[%clk 0:00:21.6]} 54... Ng6 {[%clk
0:00:16]} 55. f4 {[%clk 0:00:18.8]} 55... exf4 {[%clk 0:00:14.7]} 56. Bxf6
{[%clk 0:00:18.5]} 56... Qxf6 {[%clk 0:00:15]} 57. d4 {[%clk 0:00:18.1]} 57...
Nxh4+ {[%clk 0:00:12.9]} 58. gxh4 {[%clk 0:00:17.7]} 58... Qxh4 {[%clk
0:00:13.1]} 59. Bf3 {[%clk 0:00:14.8]} 59... Qg3+ {[%clk 0:00:12.5]} 60. Kh1
{[%clk 0:00:15.2]} 60... cxd4 {[%clk 0:00:12]} 61. Qe4 {[%clk 0:00:14.8]} 61...
b3 {[%clk 0:00:09.1]} 62. Qe6+ {[%clk 0:00:13.9]} 62... Kh8 {[%clk 0:00:09.2]}
63. Qxd6 {[%clk 0:00:14.4]} 63... Re8 {[%clk 0:00:09.8]} 64. Qd7 {[%clk
0:00:13.6]} 64... Re3 {[%clk 0:00:09.2]} 65. Qc8+ {[%clk 0:00:12.6]} 65... Kh7
{[%clk 0:00:09.3]} 66. Qf5+ {[%clk 0:00:13]} 66... Qg6 {[%clk 0:00:09.8]} 67.
Qxf4 {[%clk 0:00:12.8]} 67... b2 {[%clk 0:00:08.4]} 68. Rg1 {[%clk 0:00:09.9]}
68... b1=Q {[%clk 0:00:07]} 69. Rxb1 {[%clk 0:00:09.2]} 69... Qxb1+ {[%clk
0:00:06.9]} 70. Kg2 {[%clk 0:00:10.1]} 70... Qc2+ {[%clk 0:00:06.6]} 71. Kg3
{[%clk 0:00:10.4]} 71... Qd3 {[%clk 0:00:05.8]} 72. d6 {[%clk 0:00:10.1]} 72...
a2 {[%clk 0:00:06]} 73. d7 {[%clk 0:00:10.3]} 73... a1=Q {[%clk 0:00:05.9]} 74.
d8=Q {[%clk 0:00:08.6]} 74... Qg1+ {[%clk 0:00:06.1]} 75. Kh4 {[%clk 0:00:09.1]}
75... Rxf3 {[%clk 0:00:05.5]} 76. Qf5+ {[%clk 0:00:03.4]} 76... Qxf5 {[%clk
0:00:03.6]} 77. Qh8+ {[%clk 0:00:04.3]} 77... Kxh8 {[%clk 0:00:03.5]} 78. c5
{[%clk 0:00:05.2]} 78... Rh3# {[%clk 0:00:03.5]} 0-1

[Event "*** SCC Grand Prix: Titled Tuesday Blitz"]
[Site "Chess.com"]
[Date "2020.08.25"]
[Round "9"]
[White "praveenb2002"]
[Black "Vsevolod_Ovchinnikov"]
[Result "0-1"]
[WhiteElo "2735"]
[BlackElo "2467"]
[TimeControl "180+1"]
[EndTime "11:49:40 PDT"]
[Termination "Vsevolod_Ovchinnikov won by checkmate"]

1. d4 {[%clk 0:03:00.9]} 1... Nf6 {[%clk 0:02:58.6]} 2. c4 {[%clk 0:03:01.4]}
2... g6 {[%clk 0:02:58.7]} 3. Nc3 {[%clk 0:02:59.6]} 3... d5 {[%clk 0:02:59.3]}
4. Nf3 {[%clk 0:02:56.9]} 4... Bg7 {[%clk 0:02:59.3]} 5. Qb3 {[%clk 0:02:57.1]}
5... dxc4 {[%clk 0:02:58.9]} 6. Qxc4 {[%clk 0:02:58]} 6... O-O {[%clk 0:02:59]}
7. e4 {[%clk 0:02:57.5]} 7... a6 {[%clk 0:02:59.5]} 8. e5 {[%clk 0:02:55.3]}
8... b5 {[%clk 0:02:56.1]} 9. Qb3 {[%clk 0:02:55.7]} 9... Nfd7 {[%clk
0:02:28.7]} 10. Be3 {[%clk 0:02:54.5]} 10... Nb6 {[%clk 0:02:25.2]} 11. Rd1
{[%clk 0:02:53.4]} 11... c6 {[%clk 0:02:17.6]} 12. Ng5 {[%clk 0:02:53.3]} 12...
h6 {[%clk 0:02:15]} 13. Nge4 {[%clk 0:02:49.3]} 13... Be6 {[%clk 0:02:14.9]} 14.
Qc2 {[%clk 0:02:49.1]} 14... N8d7 {[%clk 0:02:14.1]} 15. Be2 {[%clk 0:02:37.1]}
15... Rc8 {[%clk 0:01:54.1]} 16. O-O {[%clk 0:02:33.5]} 16... Nd5 {[%clk
0:01:43.4]} 17. Bc1 {[%clk 0:02:26.2]} 17... Qb6 {[%clk 0:01:37]} 18. a3 {[%clk
0:02:19]} 18... Rc7 {[%clk 0:01:23.8]} 19. b4 {[%clk 0:02:17.8]} 19... f5 {[%clk
0:01:17.5]} 20. Nc5 {[%clk 0:02:03.1]} 20... Nxc5 {[%clk 0:01:17]} 21. dxc5
{[%clk 0:02:01.7]} 21... Qb7 {[%clk 0:01:15.1]} 22. f4 {[%clk 0:01:58]} 22...
Nxc3 {[%clk 0:01:10.9]} 23. Qxc3 {[%clk 0:01:57.4]} 23... Bd5 {[%clk 0:01:11.5]}
24. Bf3 {[%clk 0:01:49]} 24... e6 {[%clk 0:01:11.5]} 25. Bb2 {[%clk 0:01:46.3]}
25... Rd8 {[%clk 0:01:05.9]} 26. Be2 {[%clk 0:01:44.7]} 26... Rcd7 {[%clk
0:01:05.6]} 27. Rd2 {[%clk 0:01:40.7]} 27... Kh7 {[%clk 0:00:55.9]} 28. Rfd1
{[%clk 0:01:40.4]} 28... Qa7 {[%clk 0:00:37.1]} 29. Kh1 {[%clk 0:01:27.1]} 29...
a5 {[%clk 0:00:25.3]} 30. h3 {[%clk 0:01:26.1]} 30... a4 {[%clk 0:00:15.6]} 31.
Kh2 {[%clk 0:01:22.8]} 31... Qc7 {[%clk 0:00:15.4]} 32. Qg3 {[%clk 0:01:18.3]}
32... Rf8 {[%clk 0:00:14.8]} 33. h4 {[%clk 0:01:13.3]} 33... h5 {[%clk
0:00:14.3]} 34. Rd3 {[%clk 0:01:07.4]} 34... Bh6 {[%clk 0:00:14.2]} 35. Qf2
{[%clk 0:01:07.2]} 35... Rfd8 {[%clk 0:00:13.4]} 36. Rg3 {[%clk 0:01:04.8]}
36... Rg8 {[%clk 0:00:12.5]} 37. Rd4 {[%clk 0:01:01.5]} 37... Qd8 {[%clk
0:00:12.6]} 38. Rh3 {[%clk 0:00:59.2]} 38... Qe7 {[%clk 0:00:12.3]} 39. Qe1
{[%clk 0:00:58.6]} 39... Qd8 {[%clk 0:00:12.2]} 40. Qd1 {[%clk 0:00:57.4]} 40...
Qe7 {[%clk 0:00:12]} 41. Bc1 {[%clk 0:00:53.6]} 41... Qd8 {[%clk 0:00:11.9]} 42.
Be3 {[%clk 0:00:54.2]} 42... Qe7 {[%clk 0:00:11.8]} 43. Bf2 {[%clk 0:00:53.7]}
43... Qf7 {[%clk 0:00:11.5]} 44. Rhd3 {[%clk 0:00:52.7]} 44... Rgd8 {[%clk
0:00:10.8]} 45. Rg3 {[%clk 0:00:50]} 45... Rg8 {[%clk 0:00:10.3]} 46. Kg1 {[%clk
0:00:46.2]} 46... Rgd8 {[%clk 0:00:10.4]} 47. Rgd3 {[%clk 0:00:40]} 47... Qe7
{[%clk 0:00:10]} 48. Bf3 {[%clk 0:00:38.2]} 48... Bg7 {[%clk 0:00:07.2]} 49. Qd2
{[%clk 0:00:37.3]} 49... Bh6 {[%clk 0:00:07.2]} 50. Qe3 {[%clk 0:00:33.6]} 50...
Bg7 {[%clk 0:00:07.3]} 51. Be2 {[%clk 0:00:33.6]} 51... Bh6 {[%clk 0:00:07.4]}
52. Rd1 {[%clk 0:00:33.3]} 52... Bg7 {[%clk 0:00:07.6]} 53. R1d3 {[%clk
0:00:26.7]} 53... Bh6 {[%clk 0:00:07.9]} 54. Qc1 {[%clk 0:00:27]} 54... Bg7
{[%clk 0:00:07.3]} 55. Qd1 {[%clk 0:00:27.6]} 55... Bh6 {[%clk 0:00:07.3]} 56.
Rg3 {[%clk 0:00:20.6]} 56... Rg8 {[%clk 0:00:06.3]} 57. Rdd3 {[%clk 0:00:19.1]}
57... Bxf4 {[%clk 0:00:05.5]} 58. Rh3 {[%clk 0:00:13.3]} 58... Bxe5 {[%clk
0:00:05.6]} 59. Bf3 {[%clk 0:00:11.8]} 59... Rgd8 {[%clk 0:00:04.9]} 60. Qe2
{[%clk 0:00:11]} 60... Bf6 {[%clk 0:00:04.9]} 61. Bxh5 {[%clk 0:00:10.1]} 61...
gxh5 {[%clk 0:00:04.3]} 62. Qxh5+ {[%clk 0:00:11]} 62... Kg8 {[%clk 0:00:04.7]}
63. Rdg3+ {[%clk 0:00:11]} 63... Kf8 {[%clk 0:00:04.4]} 64. Qh6+ {[%clk
0:00:09.8]} 64... Bg7 {[%clk 0:00:04.6]} 65. Qh7 {[%clk 0:00:09.4]} 65... Qf7
{[%clk 0:00:03.1]} 66. Rg5 {[%clk 0:00:08.4]} 66... Bf6 {[%clk 0:00:03]} 67.
Qh6+ {[%clk 0:00:08.3]} 67... Ke7 {[%clk 0:00:03.3]} 68. Rgg3 {[%clk 0:00:05.8]}
68... Rh8 {[%clk 0:00:03.7]} 69. Qf4 {[%clk 0:00:06]} 69... Rh7 {[%clk
0:00:02.4]} 70. h5 {[%clk 0:00:06]} 70... Be4 {[%clk 0:00:02.6]} 71. Qb8 {[%clk
0:00:05.1]} 71... Rh8 {[%clk 0:00:01.6]} 72. Qb6 {[%clk 0:00:04.5]} 72... Be5
{[%clk 0:00:01.6]} 73. Re3 {[%clk 0:00:04.2]} 73... Bf6 {[%clk 0:00:02]} 74. h6
{[%clk 0:00:03.9]} 74... Bg5 {[%clk 0:00:02]} 75. Reg3 {[%clk 0:00:04.2]} 75...
Bxh6 {[%clk 0:00:01.7]} 76. Be3 {[%clk 0:00:04.6]} 76... Bg7 {[%clk 0:00:01.8]}
77. Rxh8 {[%clk 0:00:04.1]} 77... Bxh8 {[%clk 0:00:02.1]} 78. Bg5+ {[%clk
0:00:04.7]} 78... Bf6 {[%clk 0:00:02.8]} 79. Bf4 {[%clk 0:00:05.1]} 79... e5
{[%clk 0:00:02.9]} 80. Be3 {[%clk 0:00:05.1]} 80... f4 {[%clk 0:00:03.4]} 81.
Rg4 {[%clk 0:00:04.9]} 81... fxe3 {[%clk 0:00:03.7]} 82. Rxe4 {[%clk 0:00:05.4]}
82... Qd5 {[%clk 0:00:02.6]} 83. Rxe3 {[%clk 0:00:05.3]} 83... Qd1+ {[%clk
0:00:03.1]} 84. Kh2 {[%clk 0:00:05.9]} 84... Qh5+ {[%clk 0:00:03.3]} 85. Kg3
{[%clk 0:00:06.5]} 85... Qg5+ {[%clk 0:00:03.5]} 86. Kf3 {[%clk 0:00:07]} 86...
Qf4+ {[%clk 0:00:03.8]} 87. Ke2 {[%clk 0:00:07.6]} 87... Qg4+ {[%clk 0:00:04.2]}
88. Rf3 {[%clk 0:00:06.2]} 88... Qxg2+ {[%clk 0:00:03.9]} 89. Rf2 {[%clk
0:00:06.7]} 89... Qe4+ {[%clk 0:00:04.5]} 90. Kf1 {[%clk 0:00:05.7]} 90... Rd1#
{[%clk 0:00:05]} 0-1